[Event "94th FRA-ch Women 2019"]
[Site "Chartres"]
[Date "2019.08.18"]
[Round "2.5"]
[White "Richard, Emma"]
[Black "Leconte, Maria"]
[Result "0-1"]
[ECO "C87"]
[WhiteElo "2104"]
[BlackElo "2252"]
[Annotator "NA"]
[PlyCount "64"]
[EventDate "2019.08.17"]
[EventType "tourn"]
[EventCountry "FRA"]
[SourceTitle "playchess.com"]
[Source "ChessBase"]
[SourceQuality "1"]
[TimeControl "40/5400+30:1800+30"]

1. e4 {[%emt 0:00:00]} e5 {[%emt 0:00:00]} 2. Nf3 {[%emt 0:00:00]} Nc6 {[%emt 0:00:00]} 3. Bb5 {[%emt 0:00:00]} a6 {[%emt 0:00:00]} 4. Ba4 {[%emt 0:00:00]} Nf6 {[%emt 0:00:12]} 5. O-O {[%emt 0:00:21]} Be7 {[%emt 0:01:02]} 6. d3 {[%emt 0:00:51]} d6 {[%emt 0:00:23]} 7. c3 {[%emt 0:00:18]} Bg4 {[%emt 0:00:20]} 8. h3 {[%emt 0:01:26]} Bh5 {[%emt 0:00:11]} 9. Re1 {[%emt 0:01:05]} Qd7 {[%emt 0:02:41]} 10. Nbd2 {[%emt 0:09:31]} g5 {[%emt 0:00:41]} 11. Bxc6 {[%emt 0:11:16]} bxc6 {[%emt 0:02:16]} 12. d4 {[%emt 0:11:06]} g4 {[%emt 0:09:22]} 13. hxg4 $16 {[%emt 0:03:04]} Nxg4 {[%emt 0:16:09]} 14. dxe5 {[%emt 0:15:42]} Rg8 {[%emt 0:08:21]} 15. Qa4 {[%emt 0:23:42]} Nxe5 {[%emt 0:07:44]} 16. Nxe5 {[%emt 0:03:50]} dxe5 {[%emt 0:00:05]} 17. Nf1 {[%emt 0:16:18]} Bf3 {[%emt 0:16:46]} 18. Ng3 {[%emt 0:00:00]} h5 {[%emt 0:00:06]} 19. Re3 {[%emt 0:00:00]} Bg4 {[%emt 0:08:54]} 20. Nf5 {[%emt 0:00:00]} h4 {[%emt 0:07:17]} 21. Rd3 {[%emt 0:00:39]} Qxd3 {[%emt 0:06:20]} 22. Qxc6+ {[%emt 0:00:04]} Qd7 {[%emt 0:00:22]} 23. Qxa8+ {[%emt 0:00:11]} Bd8 {[%emt 0:00:05]} 24. Ne3 {[%emt 0:01:59]} Bf3 {[%emt 0:00:15]} 25. Qd5 {[%emt 0:00:21]} Qxd5 {[%emt 0:00:11]} 26. exd5 {[%emt 0:00:04]} h3 {[%emt 0:00:12]} 27. Bd2 {[%emt 0:00:42]} Bg5 {[%emt 0:03:28]} 28. Re1 {[%emt 0:00:53]} Bxe3 {[%emt 0:01:25]} 29. Rxe3 {[%emt 0:00:32]} Rxg2+ {[%emt 0:00:06]} 30. Kf1 {[%emt 0:00:17]} h2 {[%emt 0:00:55]} 31. Rxe5+ {[%emt 0:00:02]} Kd7 {[%emt 0:00:19]} 32. Rh5 {[%emt 0:00:04]} Rg1# {[%emt 0:00:07]} 0-1

[Event "94th FRA-ch Women 2019"]
[Site "Chartres"]
[Date "2019.08.19"]
[Round "3.1"]
[White "Monpeurt, Cyrielle"]
[Black "Richard, Emma"]
[Result "0-1"]
[ECO "E11"]
[WhiteElo "2171"]
[BlackElo "2104"]
[Annotator "NA"]
[PlyCount "60"]
[EventDate "2019.08.17"]
[EventType "tourn"]
[EventCountry "FRA"]
[SourceTitle "playchess.com"]
[Source "ChessBase"]
[SourceQuality "1"]
[TimeControl "40/5400+30:1800+30"]

1. d4 {[%emt 0:00:00]} Nf6 {[%emt 0:00:00]} 2. c4 {[%emt 0:00:00]} e6 {[%emt 0:00:11]} 3. Nf3 {[%emt 0:00:00]} Bb4+ {[%emt 0:00:08]} 4. Bd2 {[%emt 0:00:05]} a5 {[%emt 0:01:02]} 5. g3 {[%emt 0:02:32]} O-O {[%emt 0:04:44]} 6. Bg2 {[%emt 0:01:08]} d5 {[%emt 0:00:20]} 7. Qc2 {[%emt 0:06:04]} Be7 {[%emt 0:09:53]} 8. O-O {[%emt 0:06:07]} Nbd7 {[%emt 0:03:37]} 9. Nc3 {[%emt 0:07:37]} dxc4 {[%emt 0:05:14]} 10. e4 {[%emt 0:03:20]} c6 {[%emt 0:03:04]} 11. a4 {[%emt 0:04:27]} e5 {[%emt 0:04:50]} 12. d5 {[%emt 0:18:07]} Qc7 {[%emt 0:07:03]} 13. Rad1 {[%emt 0:04:34]} Rd8 {[%emt 0:21:50]} 14. dxc6 {[%emt 0:10:18]} bxc6 {[%emt 0:04:07]} 15. Bg5 {[%emt 0:06:00]} h6 {[%emt 0:03:32]} 16. Bxf6 {[%emt 0:01:50]} Bxf6 {[%emt 0:00:05]} 17. Bh3 {[%emt 0:04:01]} Ba6 {[%emt 0:09:31]} 18. Bxd7 {[%emt 0:02:42]} Rxd7 {[%emt 0:00:04]} 19. Rxd7 {[%emt 0:00:05]} Qxd7 {[%emt 0:00:05]} 20. Rd1 {[%emt 0:00:21]} Qc7 {[%emt 0:03:29]} 21. Rd2 {[%emt 0:01:38]} Rb8 {[%emt 0:03:03]} 22. Ne1 {[%emt 0:02:54]} Bc8 {[%emt 0:02:44]} 23. Nd1 {[%emt 0:03:34]} Bg5 {[%emt 0:01:52]} 24. Re2 {[%emt 0:00:04]} Qb6 {[%emt 0:01:20]} 25. h4 {[%emt 0:00:45]} Be7 {[%emt 0:00:31]} 26. Ne3 {[%emt 0:00:47]} Ba6 {[%emt 0:10:41]} 27. Nxc4 {[%emt 0:00:51]} Qb4 {[%emt 0:00:00]} 28. b3 {[%emt 0:02:00]} Qxb3 {[%emt 0:00:00]} 29. Qxb3 {[%emt 0:04:02]} Rxb3 {[%emt 0:00:00]} 30. Rb2 {[%emt 0:00:13]} Bxc4 {[%emt 0:00:00]} 0-1

[Event "94th FRA-ch Women 2019"]
[Site "Chartres"]
[Date "2019.08.19"]
[Round "3.2"]
[White "Milliet, Sophie"]
[Black "Thomas, Anysia"]
[Result "1-0"]
[ECO "B38"]
[WhiteElo "2397"]
[BlackElo "2158"]
[Annotator "NA"]
[PlyCount "113"]
[EventDate "2019.08.17"]
[EventType "tourn"]
[EventCountry "FRA"]
[SourceTitle "playchess.com"]
[Source "ChessBase"]
[SourceQuality "1"]
[TimeControl "40/5400+30:1800+30"]

1. e4 {[%emt 0:00:00]} c5 {[%emt 0:00:00]} 2. Nf3 {[%emt 0:00:00]} g6 {[%emt 0:00:00]} 3. c4 {[%emt 0:00:00]} Bg7 {[%emt 0:00:00]} 4. d4 {[%emt 0:00:02]} cxd4 {[%emt 0:00:04]} 5. Nxd4 {[%emt 0:00:04]} Nc6 {[%emt 0:00:06]} 6. Be3 {[%emt 0:00:03]} Qb6 {[%emt 0:00:47]} 7. Nb3 {[%emt 0:03:06]} Qd8 {[%emt 0:00:19]} 8. Qd2 {[%emt 0:00:26]} Nf6 {[%emt 0:00:29]} 9. f3 {[%emt 0:01:03]} d6 {[%emt 0:00:27]} 10. Nc3 {[%emt 0:00:16]} O-O {[%emt 0:00:12]} 11. Rc1 {[%emt 0:08:55]} a5 {[%emt 0:03:43]} 12. Na4 {[%emt 0:21:39]} Nd7 {[%emt 0:00:55]} 13. Be2 {[%emt 0:04:34]} b6 {[%emt 0:09:53]} 14. O-O {[%emt 0:09:16]} Nc5 {[%emt 0:03:46]} 15. Nc3 {[%emt 0:00:10]} Ba6 {[%emt 0:21:48]} 16. Rfd1 {[%emt 0:03:52]} Rc8 {[%emt 0:20:24]} 17. Nd5 {[%emt 0:13:45]} e6 {[%emt 0:13:42]} 18. Nxb6 {[%emt 0:08:01]} Qxb6 {[%emt 0:05:42]} 19. Qxd6 {[%emt 0:00:04]} Be5 {[%emt 0:09:26]} 20. Bxc5 {[%emt 0:01:58]} Bxd6 {[%emt 0:08:17]} 21. Bxb6 {[%emt 0:00:04]} Bf4 {[%emt 0:00:00]} 22. Rb1 {[%emt 0:01:40]} a4 {[%emt 0:00:00]} 23. Nc5 {[%emt 0:05:59]} Be3+ {[%emt 0:00:00]} 24. Kf1 {[%emt 0:00:04]} Ne5 {[%emt 0:00:00]} 25. Nxa6 {[%emt 0:07:54]} Bxb6 {[%emt 0:00:00]} 26. Rbc1 {[%emt 0:00:28]} Bc5 {[%emt 0:01:23]} 27. f4 {[%emt 0:01:53]} Be3 {[%emt 0:00:27]} 28. fxe5 {[%emt 0:00:14]} Bxc1 {[%emt 0:00:05]} 29. Rxc1 {[%emt 0:01:44]} Rfd8 {[%emt 0:00:41]} 30. c5 {[%emt 0:00:30]} Rd2 {[%emt 0:00:30]} 31. c6 {[%emt 0:00:24]} Rxb2 {[%emt 0:00:30]} 32. c7 {[%emt 0:00:30]} Kg7 {[%emt 0:00:30]} 33. Rd1 {[%emt 0:00:30]} Rc2 {[%emt 0:00:30]} 34. a3 {[%emt 0:00:30]} Rc3 {[%emt 0:00:30]} 35. Bb5 {[%emt 0:00:30]} Kh6 {[%emt 0:00:30]} 36. Bxa4 {[%emt 0:00:30]} Kg5 {[%emt 0:00:30]} 37. Bd7 {[%emt 0:00:30]} R8xc7 {[%emt 0:00:30]} 38. Nxc7 {[%emt 0:00:30]} Rxc7 {[%emt 0:00:30]} 39. Bb5 {[%emt 0:00:30]} Kf4 {[%emt 0:00:30]} 40. Re1 {[%emt 0:00:30]} Rc3 {[%emt 0:00:30]} 41. a4 {[%emt 0:30:30]} Ra3 {[%emt 0:30:30]} 42. Kf2 {[%emt 0:00:30]} g5 {[%emt 0:00:30]} 43. Be8 {[%emt 0:07:52]} Kxe5 {[%emt 0:00:00]} 44. Re3 {[%emt 0:00:00]} Ra2+ {[%emt 0:00:00]} 45. Re2 {[%emt 0:00:00]} Ra3 {[%emt 0:00:00]} 46. Ke1 {[%emt 0:00:00]} f6 {[%emt 0:00:00]} 47. Kd2 {[%emt 0:00:00]} Kd4 {[%emt 0:00:00]} 48. Kc1 {[%emt 0:00:00]} Rc3+ {[%emt 0:00:00]} 49. Kb2 {[%emt 0:00:00]} Rc8 {[%emt 0:00:00]} 50. Bb5 {[%emt 0:00:00]} h5 {[%emt 0:05:54]} 51. Kb3 {[%emt 0:00:00]} h4 {[%emt 0:00:30]} 52. a5 {[%emt 0:00:00]} g4 {[%emt 0:00:00]} 53. a6 {[%emt 0:00:00]} f5 {[%emt 0:00:00]} 54. exf5 {[%emt 0:00:00]} exf5 {[%emt 0:00:00]} 55. Ra2 {[%emt 0:00:00]} Ra8 {[%emt 0:00:00]} 56. Bc6 {[%emt 0:00:00]} Ra7 {[%emt 0:00:00]} 57. Kb4 {[%emt 0:00:00]} 1-0

[Event "94th FRA-ch Women 2019"]
[Site "Chartres"]
[Date "2019.08.19"]
[Round "3.3"]
[White "Leconte, Maria"]
[Black "Navrotescu, Andreea-Cristiana"]
[Result "1/2-1/2"]
[ECO "C15"]
[WhiteElo "2252"]
[BlackElo "2210"]
[Annotator "NA"]
[PlyCount "115"]
[EventDate "2019.08.17"]
[EventType "tourn"]
[EventCountry "FRA"]
[SourceTitle "playchess.com"]
[Source "ChessBase"]
[SourceQuality "1"]
[TimeControl "40/5400+30:1800+30"]

1. e4 {[%emt 0:00:00]} e6 {[%emt 0:00:00]} 2. d4 {[%emt 0:00:00]} d5 {[%emt 0:00:00]} 3. Nc3 {[%emt 0:00:00]} Bb4 {[%emt 1:31:30]} 4. Nge2 {[%emt 0:00:00]} dxe4 {[%emt 0:00:00]} 5. a3 {[%emt 0:00:01]} Be7 {[%emt 0:00:00]} 6. Nxe4 {[%emt 0:00:06]} Nf6 {[%emt 0:00:00]} 7. Nxf6+ {[%emt 0:00:08]} Bxf6 {[%emt 0:00:00]} 8. Be3 {[%emt 0:00:06]} O-O {[%emt 0:00:00]} 9. Qd2 {[%emt 0:00:10]} c6 {[%emt 0:00:00]} 10. O-O-O {[%emt 0:13:30]} b5 {[%emt 0:00:00]} 11. Ng3 {[%emt 0:00:56]} Nd7 {[%emt 0:00:00]} 12. Nh5 {[%emt 0:02:43]} Be7 {[%emt 0:00:00]} 13. h4 {[%emt 0:03:34]} Re8 {[%emt 0:00:00]} 14. Bd3 {[%emt 0:25:03]} Bf8 {[%emt 0:00:00]} 15. Rh3 {[%emt 0:02:35]} Kh8 {[%emt 0:00:00]} 16. Rg3 {[%emt 0:18:45]} e5 {[%emt 0:00:00]} 17. Bf5 {[%emt 0:02:22]} Nb6 {[%emt 0:00:00]} 18. Bxc8 {[%emt 0:04:37]} Nc4 {[%emt 0:00:00]} 19. Qc3 {[%emt 0:01:00]} Nxe3 {[%emt 0:00:00]} 20. Rxe3 {[%emt 0:00:05]} Rxc8 {[%emt 0:00:00]} 21. dxe5 {[%emt 0:00:38]} Qxh4 {[%emt 0:00:00]} 22. Ng3 {[%emt 0:02:49]} c5 {[%emt 0:00:00]} 23. Re4 {[%emt 0:01:30]} Qh6+ {[%emt 0:00:00]} 24. Qe3 {[%emt 0:02:29]} Qxe3+ {[%emt 0:00:00]} 25. Rxe3 {[%emt 0:00:06]} g6 {[%emt 0:00:00]} 26. Kb1 {[%emt 0:01:32]} Rcd8 {[%emt 0:00:00]} 27. Rxd8 {[%emt 0:02:22]} Rxd8 {[%emt 0:00:00]} 28. Ne4 {[%emt 0:00:15]} Rd1+ {[%emt 0:00:00]} 29. Ka2 {[%emt 0:00:04]} Kg7 {[%emt 0:03:45]} 30. Re2 {[%emt 0:00:27]} h6 {[%emt 0:02:55]} 31. f3 {[%emt 0:02:41]} a6 {[%emt 0:00:43]} 32. a4 {[%emt 0:08:01]} Rd8 {[%emt 0:01:52]} 33. axb5 {[%emt 0:04:29]} axb5 {[%emt 0:05:45]} 34. Rd2 {[%emt 0:00:26]} Rxd2 {[%emt 0:00:00]} 35. Nxd2 {[%emt 0:00:03]} g5 {[%emt 0:00:00]} 36. g4 {[%emt 0:00:13]} Kg6 {[%emt 0:00:00]} 37. c4 {[%emt 0:00:35]} bxc4 {[%emt 0:00:00]} 38. Nxc4 {[%emt 0:00:56]} h5 {[%emt 0:00:00]} 39. gxh5+ {[%emt 0:01:03]} Kxh5 {[%emt 0:00:00]} 40. Kb3 {[%emt 0:01:29]} Kg6 {[%emt 0:00:00]} 41. Ne3 {[%emt 0:16:58]} Bg7 {[%emt 0:00:48]} 42. Kc4 {[%emt 0:01:12]} Bxe5 {[%emt 0:00:12]} 43. Kxc5 {[%emt 0:00:08]} Bxb2 {[%emt 0:00:04]} 44. Kc4 {[%emt 0:01:32]} Bc1 {[%emt 0:01:00]} 45. Nd5 {[%emt 0:02:22]} Kf5 {[%emt 0:00:25]} 46. Kd3 {[%emt 0:00:08]} Ke5 {[%emt 0:00:56]} 47. Nc3 {[%emt 0:00:41]} Kf4 {[%emt 0:01:30]} 48. Ke2 {[%emt 0:00:30]} Kg3 {[%emt 0:02:46]} 49. Ne4+ {[%emt 0:00:27]} Kg2 {[%emt 0:01:02]} 50. Nd6 {[%emt 0:00:42]} f6 {[%emt 0:00:13]} 51. Nf5 {[%emt 0:00:24]} Bf4 {[%emt 0:00:50]} 52. Nh6 {[%emt 0:00:51]} Bc1 {[%emt 0:05:57]} 53. Nf5 {[%emt 0:00:19]} Bd2 {[%emt 0:01:32]} 54. Nd4 {[%emt 0:01:09]} Bf4 {[%emt 0:00:27]} 55. Nf5 {[%emt 0:00:24]} Bc1 {[%emt 0:00:10]} 56. Nd6 {[%emt 0:01:08]} Ba3 {[%emt 0:01:00]} 57. Nf5 {[%emt 0:01:12]} Bc5 {[%emt 0:00:03]} 58. Ng7 {[%emt 0:00:22]} 1/2-1/2

[Event "94th FRA-ch Women 2019"]
[Site "Chartres"]
[Date "2019.08.19"]
[Round "3.4"]
[White "Maisuradze, Nino"]
[Black "Safranska, Anda"]
[Result "1-0"]
[ECO "B06"]
[WhiteElo "2203"]
[BlackElo "2128"]
[Annotator "NA"]
[PlyCount "73"]
[EventDate "2019.08.17"]
[EventType "tourn"]
[EventCountry "FRA"]
[SourceTitle "playchess.com"]
[Source "ChessBase"]
[SourceQuality "1"]
[TimeControl "40/5400+30:1800+30"]

1. d4 {[%emt 0:01:25]} d6 {[%emt 0:00:00]} 2. e4 {[%emt 0:00:25]} g6 {[%emt 0:00:00]} 3. Nc3 {[%emt 0:03:30]} a6 {[%emt 0:01:01]} 4. f4 {[%emt 0:01:22]} b5 {[%emt 0:00:23]} 5. Nf3 {[%emt 0:02:39]} Bb7 {[%emt 0:00:25]} 6. Bd3 {[%emt 0:01:17]} Bg7 {[%emt 0:01:04]} 7. Be3 {[%emt 0:01:08]} Nd7 {[%emt 0:00:27]} 8. e5 {[%emt 0:04:17]} e6 {[%emt 0:01:01]} 9. O-O {[%emt 0:10:40]} Ne7 {[%emt 0:02:10]} 10. Qd2 {[%emt 0:02:02]} Nb6 {[%emt 0:04:16]} 11. Qe2 {[%emt 0:10:56]} O-O {[%emt 0:06:20]} 12. Rad1 {[%emt 0:19:39]} Qd7 {[%emt 0:04:11]} 13. Ne4 {[%emt 0:05:58]} Ned5 {[%emt 0:00:40]} 14. Bd2 {[%emt 0:03:57]} f5 {[%emt 0:02:02]} 15. exf6 {[%emt 0:11:13]} Nxf6 {[%emt 0:01:04]} 16. Neg5 {[%emt 0:01:10]} Rae8 {[%emt 0:02:27]} 17. Rde1 {[%emt 0:01:00]} Bc8 {[%emt 0:01:19]} 18. c3 {[%emt 0:00:49]} Nbd5 {[%emt 0:19:18]} 19. Nh4 {[%emt 0:02:01]} Qd8 {[%emt 0:08:37]} 20. Bc2 {[%emt 0:01:55]} c6 {[%emt 0:07:43]} 21. Kh1 {[%emt 0:02:17]} Bd7 {[%emt 0:09:35]} 22. a3 {[%emt 0:05:52]} Bc8 {[%emt 0:12:29]} 23. b3 {[%emt 0:01:43]} Nc7 {[%emt 0:01:18]} 24. c4 {[%emt 0:01:25]} Nd7 {[%emt 0:02:26]} 25. Ba5 {[%emt 0:01:05]} Nf6 {[%emt 0:05:00]} 26. Rf3 {[%emt 0:00:46]} Nh5 {[%emt 0:01:38]} 27. Qe4 {[%emt 0:02:14]} d5 {[%emt 0:01:04]} 28. Qe3 {[%emt 0:00:35]} dxc4 {[%emt 0:00:56]} 29. Bxc7 {[%emt 0:00:10]} Qxc7 {[%emt 0:00:07]} 30. Nxh7 {[%emt 0:00:25]} Rxf4 {[%emt 0:02:54]} 31. Nxg6 {[%emt 0:00:26]} Bxd4 {[%emt 0:00:56]} 32. Qd2 {[%emt 0:00:57]} Rxf3 {[%emt 0:02:15]} 33. gxf3 {[%emt 0:00:35]} Bg7 {[%emt 0:00:49]} 34. Qg5 {[%emt 0:00:22]} cxb3 {[%emt 0:00:10]} 35. Be4 {[%emt 0:00:38]} Qf7 {[%emt 0:00:51]} 36. Qxh5 {[%emt 0:00:11]} b2 {[%emt 0:00:20]} 37. Ng5 {[%emt 0:00:17]} 1-0

[Event "94th FRA-ch Women 2019"]
[Site "Chartres"]
[Date "2019.08.19"]
[Round "3.5"]
[White "Broly, Mathilde"]
[Black "Guichard, Pauline"]
[Result "0-1"]
[ECO "A17"]
[WhiteElo "2177"]
[BlackElo "2405"]
[Annotator "NA"]
[PlyCount "78"]
[EventDate "2019.08.17"]
[EventType "tourn"]
[EventCountry "FRA"]
[SourceTitle "playchess.com"]
[Source "ChessBase"]
[SourceQuality "1"]
[TimeControl "40/5400+30:1800+30"]

1. c4 {[%emt 0:00:00]} Nf6 {[%emt 0:00:00]} 2. Nc3 {[%emt 0:00:05]} e6 {[%emt 0:00:00]} 3. g3 {[%emt 0:06:04]} d5 {[%emt 0:00:29]} 4. Bg2 {[%emt 0:01:19]} d4 {[%emt 0:04:04]} 5. Ne4 {[%emt 0:03:13]} Nxe4 {[%emt 0:01:42]} 6. Bxe4 {[%emt 0:00:10]} c5 {[%emt 0:07:29]} 7. d3 {[%emt 0:19:07]} Bd6 {[%emt 0:05:02]} 8. Bg2 {[%emt 0:01:14]} Nc6 {[%emt 0:07:32]} 9. Nf3 {[%emt 0:02:49]} O-O {[%emt 0:01:03]} 10. O-O {[%emt 0:01:11]} e5 {[%emt 0:00:29]} 11. a3 {[%emt 0:06:51]} a5 {[%emt 0:00:33]} 12. b3 {[%emt 0:00:44]} h6 {[%emt 0:05:56]} 13. Ne1 {[%emt 0:17:38]} Bf5 {[%emt 0:05:22]} 14. Nc2 {[%emt 0:02:40]} Qd7 {[%emt 0:02:59]} 15. Rb1 {[%emt 0:01:38]} Bh3 {[%emt 0:01:31]} 16. e3 {[%emt 0:03:57]} Bxg2 {[%emt 0:04:00]} 17. Kxg2 {[%emt 0:00:07]} Be7 {[%emt 0:08:47]} 18. Bb2 {[%emt 0:05:51]} Ra6 {[%emt 0:02:18]} 19. exd4 {[%emt 0:03:20]} exd4 {[%emt 0:00:49]} 20. f4 {[%emt 0:02:50]} Bf6 {[%emt 0:01:17]} 21. Bc1 {[%emt 0:01:04]} Ne7 {[%emt 0:00:23]} 22. Qf3 {[%emt 0:01:55]} Re6 {[%emt 0:08:22]} 23. Bd2 {[%emt 0:02:54]} Nf5 {[%emt 0:03:31]} 24. Rfe1 {[%emt 0:01:53]} Rfe8 {[%emt 0:00:40]} 25. Kf2 {[%emt 0:03:32]} Ne3 {[%emt 0:03:42]} 26. Bxe3 {[%emt 0:00:47]} dxe3+ {[%emt 0:00:09]} 27. Ke2 {[%emt 0:00:04]} Bc3 {[%emt 0:01:12]} 28. Red1 {[%emt 0:00:36]} Bd2 {[%emt 0:00:29]} 29. b4 {[%emt 0:06:02]} Rd8 {[%emt 0:04:36]} 30. Rxd2 {[%emt 0:00:52]} exd2+ {[%emt 0:00:26]} 31. Kxd2 {[%emt 0:00:06]} Rd6 {[%emt 0:06:05]} 32. Rb3 {[%emt 0:00:07]} b5 {[%emt 0:01:07]} 33. cxb5 {[%emt 0:02:17]} c4 {[%emt 0:00:07]} 34. Rc3 {[%emt 0:00:13]} cxd3 {[%emt 0:00:46]} 35. Ne1 {[%emt 0:00:32]} axb4 {[%emt 0:00:30]} 36. axb4 {[%emt 0:00:48]} Qxb5 {[%emt 0:00:09]} 37. Rxd3 {[%emt 0:01:07]} Qxb4+ {[%emt 0:00:19]} 38. Kd1 {[%emt 0:00:58]} Qc3 {[%emt 0:01:04]} 39. Rxd6 {[%emt 0:01:12]} Rxd6+ {[%emt 0:00:08]} 0-1

[Event "94th FRA-ch Women 2019"]
[Site "Chartres"]
[Date "2019.08.20"]
[Round "4.1"]
[White "Maisuradze, Nino"]
[Black "Leconte, Maria"]
[Result "1-0"]
[ECO "A28"]
[WhiteElo "2203"]
[BlackElo "2252"]
[Annotator "NA"]
[PlyCount "95"]
[EventDate "2019.08.17"]
[EventType "tourn"]
[EventCountry "FRA"]
[SourceTitle "playchess.com"]
[Source "ChessBase"]
[SourceQuality "1"]
[TimeControl "40/5400+30:1800+30"]

1. c4 {[%emt 0:00:00]} e5 {[%emt 0:04:11]} 2. Nc3 {[%emt 0:00:00]} Nc6 {[%emt 0:00:34]} 3. Nf3 {[%emt 0:05:22]} Nf6 {[%emt 0:10:16]} 4. e4 {[%emt 0:01:39]} d6 {[%emt 0:06:21]} 5. d3 {[%emt 0:08:01]} Be7 {[%emt 0:05:26]} 6. Be2 {[%emt 0:00:24]} O-O {[%emt 0:00:20]} 7. h3 {[%emt 0:00:42]} Nd4 {[%emt 0:02:27]} 8. Nxd4 {[%emt 0:08:16]} exd4 {[%emt 0:00:04]} 9. Nb1 {[%emt 0:07:39]} a6 {[%emt 0:15:53]} 10. O-O {[%emt 0:00:38]} Nd7 {[%emt 0:01:53]} 11. Nd2 {[%emt 0:02:32]} Bf6 {[%emt 0:00:23]} 12. f4 {[%emt 0:00:35]} b5 {[%emt 0:00:35]} 13. b3 {[%emt 0:04:27]} Re8 {[%emt 0:04:54]} 14. g4 {[%emt 0:06:42]} h6 {[%emt 0:02:50]} 15. Bf3 {[%emt 0:12:53]} Rb8 {[%emt 0:01:31]} 16. Bg2 {[%emt 0:02:20]} Nc5 {[%emt 0:06:02]} 17. Qf3 {[%emt 0:01:25]} Qe7 {[%emt 0:06:40]} 18. Bb2 {[%emt 0:11:37]} Bb7 {[%emt 0:03:51]} 19. Ba3 {[%emt 0:15:37]} Nd7 {[%emt 0:01:52]} 20. Qf2 {[%emt 0:02:17]} c5 {[%emt 0:02:30]} 21. Nf3 {[%emt 0:00:22]} g6 {[%emt 0:07:31]} 22. Rae1 {[%emt 0:00:19]} Bg7 {[%emt 0:01:23]} 23. h4 {[%emt 0:01:12]} Nf6 {[%emt 0:01:31]} 24. Bh3 {[%emt 0:00:57]} Bc8 {[%emt 0:02:07]} 25. f5 {[%emt 0:02:14]} Nh7 {[%emt 0:02:47]} 26. Bc1 {[%emt 0:04:01]} Qb7 {[%emt 0:02:54]} 27. g5 {[%emt 0:00:26]} h5 {[%emt 0:00:25]} 28. Qg3 {[%emt 0:00:19]} Be5 {[%emt 0:00:23]} 29. Bf4 {[%emt 0:00:29]} Qc7 {[%emt 0:00:16]} 30. fxg6 {[%emt 0:00:44]} fxg6 {[%emt 0:00:17]} 31. Bxc8 {[%emt 0:00:18]} Rbxc8 {[%emt 0:00:08]} 32. Re2 {[%emt 0:00:41]} Re7 {[%emt 0:01:00]} 33. Ref2 {[%emt 0:00:19]} Rf8 {[%emt 0:00:39]} 34. Bxe5 {[%emt 0:00:47]} dxe5 {[%emt 0:00:06]} 35. Nd2 {[%emt 0:00:20]} Qd6 {[%emt 0:04:22]} 36. cxb5 {[%emt 0:00:32]} axb5 {[%emt 0:00:07]} 37. a4 {[%emt 0:00:22]} Rb8 {[%emt 0:01:59]} 38. axb5 {[%emt 0:00:22]} Rxb5 {[%emt 0:00:19]} 39. Rf6 {[%emt 0:00:35]} Nxf6 {[%emt 0:00:50]} 40. gxf6 {[%emt 0:00:02]} Rf7 {[%emt 0:00:15]} 41. Qxg6+ {[%emt 0:06:43]} Kf8 {[%emt 0:00:08]} 42. Nc4 {[%emt 0:02:29]} Qe6 {[%emt 0:01:01]} 43. Rf5 {[%emt 0:00:34]} Rxb3 {[%emt 0:09:14]} 44. Qh6+ {[%emt 0:00:57]} Ke8 {[%emt 0:00:06]} 45. Rxe5 {[%emt 0:01:06]} Kd7 {[%emt 0:00:06]} 46. Rxe6 {[%emt 0:00:17]} Kxe6 {[%emt 0:00:04]} 47. Qg6 {[%emt 0:06:35]} Rb1+ {[%emt 0:04:09]} 48. Kg2 {[%emt 0:16:52] Kd5} 1-0

[Event "94th FRA-ch Women 2019"]
[Site "Chartres"]
[Date "2019.08.20"]
[Round "4.2"]
[White "Navrotescu, Andreea-Cristiana"]
[Black "Monpeurt, Cyrielle"]
[Result "1-0"]
[ECO "A22"]
[WhiteElo "2210"]
[BlackElo "2171"]
[Annotator "NA"]
[PlyCount "69"]
[EventDate "2019.08.17"]
[EventType "tourn"]
[EventCountry "FRA"]
[SourceTitle "playchess.com"]
[Source "ChessBase"]
[SourceQuality "1"]
[TimeControl "40/5400+30:1800+30"]

1. c4 {[%emt 0:00:00]} Nf6 {[%emt 0:00:00]} 2. Nc3 {[%emt 0:00:00]} c6 {[%emt 0:00:00]} 3. e4 {[%emt 0:07:34]} e5 {[%emt 0:00:10]} 4. Nf3 {[%emt 0:00:20]} Bb4 {[%emt 0:00:14]} 5. Be2 {[%emt 0:06:27]} d6 {[%emt 0:01:40]} 6. d3 {[%emt 0:01:19]} O-O {[%emt 0:03:12]} 7. Bg5 {[%emt 0:02:00]} Nbd7 {[%emt 0:00:41]} 8. a3 {[%emt 0:04:16]} Ba5 {[%emt 0:00:46]} 9. b4 {[%emt 0:01:08]} Bc7 {[%emt 0:00:08]} 10. O-O {[%emt 0:02:17]} h6 {[%emt 0:01:03]} 11. Bc1 {[%emt 0:03:21]} Re8 {[%emt 0:01:33]} 12. Bb2 {[%emt 0:01:52]} Nf8 {[%emt 0:01:13]} 13. Re1 {[%emt 0:02:22]} Ng6 {[%emt 0:08:55]} 14. g3 {[%emt 0:08:48]} d5 {[%emt 0:08:02]} 15. cxd5 {[%emt 0:01:12]} cxd5 {[%emt 0:00:12]} 16. Bf1 {[%emt 0:04:00]} Be6 {[%emt 0:05:09]} 17. Bg2 {[%emt 0:03:00]} Qd7 {[%emt 0:02:30]} 18. exd5 {[%emt 0:04:47]} Nxd5 {[%emt 0:01:37]} 19. Na4 {[%emt 0:02:50]} Bg4 {[%emt 0:04:35]} 20. Qb3 {[%emt 0:07:04]} Rad8 {[%emt 0:05:47]} 21. Nc5 {[%emt 0:01:34]} Qf5 {[%emt 0:00:16]} 22. Nd2 {[%emt 0:01:17]} Ndf4 {[%emt 0:03:59]} 23. gxf4 {[%emt 0:03:24]} Nxf4 {[%emt 0:00:16]} 24. Re3 {[%emt 0:06:19]} Bh3 {[%emt 0:05:23]} 25. Bf1 {[%emt 0:10:02]} Rd6 {[%emt 0:09:51]} 26. Nde4 {[%emt 0:00:09]} Rg6+ {[%emt 0:00:19]} 27. Rg3 {[%emt 0:00:15]} Bxf1 {[%emt 0:06:53]} 28. Kxf1 {[%emt 0:00:17]} b6 {[%emt 0:03:36]} 29. Na6 {[%emt 0:02:17]} Bd8 {[%emt 0:00:54]} 30. Bc1 {[%emt 0:06:22]} Ree6 {[%emt 0:08:20]} 31. Ke1 {[%emt 0:04:44]} Bh4 {[%emt 0:01:10]} 32. Bxf4 {[%emt 0:00:46]} Qxf4 {[%emt 0:01:03]} 33. Nc7 {[%emt 0:01:27]} Rc6 {[%emt 0:01:29]} 34. Nd5 {[%emt 0:00:01]} Rc1+ {[%emt 0:03:28]} 35. Ke2 {[%emt 0:00:26]} 1-0